fUSD/lending_fUSD_20260401
["ID","MTS","AMOUNT","RATE_DAILY","PERIOD"]
[419196603,1775016639684,-350.0,0.00017,2]
[419196604,1775016639693,-91105.32015854,0.00017,2]
[419196605,1775016639702,-707.3,0.00017019,2]
[419196606,1775016639711,-2363.42,0.00017019,2]
[419196607,1775016639720,-1907.2,0.00017058,2]
[419196609,1775016639730,-525.7484,0.000171,27]
[419196611,1775016639738,-19637.16203367,0.00017283,2]
[419196613,1775016639747,-785.2,0.00017392,2]
[419196615,1775016639756,-743.89,0.00017424,2]
[419196616,1775016639766,-262.16,0.00017616,2]
[419196618,1775016639775,-785.2,0.00017666,2]
[419196619,1775016639785,-161.16,0.0001774,2]
[419196620,1775016639795,-187.51,0.0001794,2]
[419196621,1775016639805,-1000.77125488,0.00018,2]
[419196622,1775016639817,-1199.0,0.00018143,2]
[419196623,1775016639826,-504.0,0.00018256,6]
[419196624,1775016639838,-500.0,0.00018384,2]
[419196625,1775016639848,-402.8,0.00018399,2]
[419196626,1775016639857,-675.6399,0.000185,32]
[419196627,1775016639867,-883.13,0.00018765,2]
[419196628,1775016639876,-400.0,0.00019,2]
[419196629,1775016639886,-155.52529498,0.00019078,2]
[419196630,1775016639896,-3000.0,0.00019178,2]
[419196631,1775016639905,-150.1102686,0.000192,2]
[419196632,1775016639915,-868.2657,0.000198,37]
[419196633,1775016639924,-504.0,0.00019971,7]
[419196634,1775016639935,-1115.0,0.00019995,2]
[419196635,1775016639944,-825.0,0.0002,30]
[419196636,1775016639954,-26630.13333748,0.0002,2]
[419196637,1775016639963,-835.0,0.0002,2]
[419196638,1775016639972,-19637.16203367,0.00020038,2]
[419196639,1775016639981,-500.0,0.00020137,2]
[419196640,1775016639990,-402.8,0.00020359,2]
[419196641,1775016639999,-250.0,0.00020453,2]
[419196642,1775016640009,-1289.0,0.00020638,10]
[419196643,1775016640018,-3323.75700798,0.00020679,2]
[419196644,1775016640027,-168.0,0.0002096,2]
[419196645,1775016640036,-501.0,0.00021,2]
[419196646,1775016640046,-450.0,0.00021,2]
[419196647,1775016640055,-1115.0,0.00021047,2]
[419196648,1775016640065,-262.16,0.00021123,2]
[419196649,1775016640074,-1102.0,0.00021151,2]
[419196650,1775016640083,-1115.8094,0.000212,42]
[419196651,1775016640093,-168.0,0.00021367,2]
[419196652,1775016640102,-161.16,0.0002137,2]
[419196653,1775016640111,-8930.68,0.00021376,2]
[419196654,1775016640120,-1096.7224638,0.0002143,2]
[419196655,1775016640129,-418.6,0.00021458,2]
[419196656,1775016640139,-376.53,0.00021458,2]
[419196657,1775016640148,-168.0,0.00021492,2]
[419196658,1775016640158,-1102.0,0.00021508,2]
[419196659,1775016640167,-168.0,0.00021589,2]
[419196660,1775016640175,-168.0,0.00021685,2]
[419196661,1775016640185,-504.0,0.00021686,9]
[419196662,1775016640195,-1102.0,0.00021745,2]
[419196663,1775016640204,-250.0,0.00021811,4]
[419196664,1775016640213,-5000.0,0.00021918,2]
[419196665,1775016640227,-168.0,0.00021921,2]
[419196666,1775016640237,-168.0,0.00021945,2]
[419196667,1775016640247,-376.53,0.00021995,2]
[419196668,1775016640256,-160.0,0.00022,30]
[419196669,1775016640267,-154.66442286,0.00022,2]
[419196670,1775016640275,-812.0,0.00022,2]
[419196671,1775016640288,-839.0,0.00022,2]
[419196672,1775016640298,-3822.0,0.00022,2]
[419196673,1775016640307,-962.0,0.00022,2]
[419196674,1775016640318,-456.0,0.00022,2]
[419196675,1775016640327,-154.74,0.00022,30]
[419196676,1775016640336,-168.0,0.00022061,2]
[419196677,1775016640345,-1102.0,0.00022087,2]
[419196678,1775016640356,-1102.0,0.00022131,2]
[419196679,1775016640366,-1115.0,0.00022155,2]
[419196680,1775016640375,-822.00852713,0.00022161,2]
[419196681,1775016640385,-1102.0,0.00022178,2]
[419196682,1775016640395,-1102.0,0.00022208,2]
[419196683,1775016640404,-168.0,0.00022216,2]
[419196684,1775016640413,-168.0,0.00022235,2]
[419196685,1775016640422,-402.8,0.00022319,2]
[419196686,1775016640431,-168.0,0.00022365,2]
[419196687,1775016640440,-1102.0,0.00022417,2]
[419196688,1775016640449,-825.0,0.00022434,30]
[419196689,1775016640464,-418.61584708,0.00022531,2]
[419196690,1775016640472,-376.55224687,0.00022531,2]
[419196691,1775016640482,-1433.9281,0.000226,47]
[419196692,1775016640491,-10265.08645509,0.000226,2]
[419196693,1775016640501,-168.0,0.00022699,2]
[419196694,1775016640510,-2679.61,0.0002274,2]
[419196695,1775016640519,-168.0,0.0002275,2]
[419196696,1775016640528,-19637.16203367,0.00022793,2]
[419196697,1775016640537,-168.0,0.00022835,2]
[419196698,1775016640546,-168.0,0.00022855,2]
[419196699,1775016640555,-168.0,0.00022869,2]
[419196700,1775016640564,-1102.0,0.00022995,2]
[419196701,1775016640575,-812.0,0.00023,2]
[419196702,1775016640584,-839.0,0.00023,2]
[419196703,1775016640595,-3822.0,0.00023,2]
[419196704,1775016640603,-962.0,0.00023,2]
[419196705,1775016640612,-456.0,0.00023,2]
[419196706,1775016640621,-1005.27794922,0.00023,2]
[419196707,1775016640630,-216.92436229,0.00023091,2]
[419196708,1775016640639,-500.0,0.00023109,2]
[419196709,1775016640648,-180.02150181,0.00023116,2]
[419196710,1775016640657,-1115.0,0.00023321,2]
[419196711,1775016640666,-504.0,0.00023402,10]
[419196713,1775016640676,-423.91679296,0.00023802,2]
[419196714,1775016640685,-500.0,0.00023836,2]
[419196715,1775016640696,-250.0,0.00023925,5]
[419196716,1775016640708,-200.0,0.00024,2]
[419196717,1775016640717,-812.0,0.00024,2]
[419196718,1775016640727,-839.0,0.00024,2]
[419196719,1775016640736,-1842.7428,0.00024,52]
[419196720,1775016640745,-3822.0,0.00024,2]
[419196721,1775016640754,-962.0,0.00024,2]
[419196722,1775016640764,-456.0,0.00024,2]
[419196723,1775016640774,-150.0,0.00024151,2]
[419196724,1775016640785,-402.8,0.00024279,2]
[419196725,1775016640795,-1115.0,0.00024487,2]
[419196726,1775016640804,-257.4710504,0.0002463,2]
[419196727,1775016640814,-195.94,0.00024658,2]
[419196728,1775016640823,-1000.0,0.00024658,2]
[419196729,1775016640832,-150.0,0.00024658,2]
[419196730,1775016640841,-825.0,0.00024869,60]
[419196731,1775016640851,-375.0,0.00025,2]
[419196732,1775016640860,-812.0,0.00025,2]
[419196733,1775016640869,-839.0,0.00025,2]
[419196734,1775016640878,-3822.0,0.00025,2]
[419196735,1775016640888,-962.0,0.00025,2]
[419196736,1775016640897,-456.0,0.00025,2]
[419196737,1775016640906,-150.0,0.00025,2]
[419196738,1775016640915,-504.0,0.00025117,12]
[419196739,1775016640925,-3323.75700798,0.00025123,2]
[419196740,1775016640935,-174.78,0.0002518,2]
[419196741,1775016640946,-2368.1111,0.000253,57]
[419196742,1775016640956,-2000.0,0.00025345,2]
[419196743,1775016640965,-2000.0,0.00025345,2]
[419196744,1775016640974,-2000.0,0.00025345,2]
[419196745,1775016640984,-2000.0,0.00025345,2]
[419196746,1775016640993,-2000.0,0.00025345,2]
[419196747,1775016641002,-2000.0,0.00025345,2]
[419196748,1775016641011,-2000.0,0.00025345,2]
[419196749,1775016641020,-2000.0,0.00025345,2]
[419196750,1775016641029,-2000.0,0.00025345,2]
[419196751,1775016641039,-2000.0,0.00025345,2]
[419196752,1775016641049,-284.52,0.00025483,2]
[419196753,1775016641058,-2000.0,0.000255,2]
[419196754,1775016641067,-19637.16203367,0.00025547,2]
[419196755,1775016641076,-161.16,0.00025667,2]
[419196756,1775016641087,-1115.0,0.00025711,2]
[419196757,1775016641096,-174.78,0.00025731,2]
[419196758,1775016641105,-150.0,0.0002589,2]
[419196759,1775016641114,-156.38,0.000259,2]
[419196760,1775016641124,-201.78,0.000259,2]
[419196761,1775016641133,-850.0,0.00025938,2]
[419196762,1775016641143,-850.0,0.00025938,2]
[419196763,1775016641154,-850.0,0.00025938,2]
[419196764,1775016641163,-850.0,0.00025938,2]
[419196765,1775016641172,-850.0,0.00025938,2]
[419196766,1775016641182,-850.0,0.00025938,2]
[419196767,1775016641191,-850.0,0.00025938,2]
[419196768,1775016641200,-850.0,0.00025938,2]
[419196769,1775016641209,-850.0,0.00025938,2]
[419196770,1775016641218,-709.0,0.00025938,2]
[419196771,1775016641228,-375.0,0.00026,2]
[419196772,1775016641238,-812.0,0.00026,2]
[419196773,1775016641247,-839.0,0.00026,2]
[419196774,1775016641256,-3822.0,0.00026,2]
[419196775,1775016641266,-962.0,0.00026,2]
[419196776,1775016641275,-456.0,0.00026,2]
[419196777,1775016641284,-30000.0,0.00026009,2]
[419196778,1775016641293,-500.0,0.00026082,2]
[419196779,1775016641303,-154.74,0.0002613,30]
[419196780,1775016641311,-150.0,0.00026141,2]
[419196781,1775016641320,-150.0,0.00026141,2]
[419196782,1775016641331,-150.0,0.00026141,2]
[419196783,1775016641340,-150.0,0.00026141,2]
[419196784,1775016641352,-150.0,0.00026141,2]
[419196785,1775016641362,-254.0,0.00026141,2]
[419196786,1775016641371,-402.8,0.00026239,2]
[419196787,1775016641380,-174.77404292,0.00026281,2]
[419196788,1775016641389,-161.16,0.00026333,2]
[419196789,1775016641400,-599.0,0.00026438,2]
[419196790,1775016641409,-250.0,0.00026575,8]
[419196791,1775016641419,-3043.2625,0.000267,62]
[419196792,1775016641429,-504.0,0.00026832,13]
[419196793,1775016641438,-250.0,0.0002693,8]
[419196794,1775016641446,-1115.0,0.00026997,2]
[419196795,1775016641455,-160.0,0.00027,3]
[419196796,1775016641465,-160.0,0.00027,3]
[419196797,1775016641475,-375.0,0.00027,2]
[419196798,1775016641484,-150.0,0.00027,2]
[419196799,1775016641494,-822.0,0.00027,2]
[419196800,1775016641504,-850.0,0.00027,2]
[419196801,1775016641513,-3835.0,0.00027,2]
[419196802,1775016641522,-967.0,0.00027,2]
[419196803,1775016641532,-470.0,0.00027,2]
[419196804,1775016641542,-20000.0,0.00027,2]
[419196805,1775016641552,-150.0,0.00027185,2]
[419196806,1775016641562,-825.0,0.00027303,60]
[419196807,1775016641572,-822.00852713,0.00027346,2]
[419196808,1775016641582,-222.1599123,0.00027346,2]
[419196809,1775016641591,-1204.24941568,0.00027351,2]
[419196810,1775016641601,-405.22763084,0.00027387,2]
[419196811,1775016641610,-195.94,0.00027397,2]
[419196812,1775016641620,-300.0,0.00027397,2]
[419196813,1775016641629,-1000.0,0.00027397,20]
[419196814,1775016641638,-197.25422058,0.00027397,2]
[419196815,1775016641648,-706.0,0.00027451,5]
[419196816,1775016641657,-312.51008599,0.0002754,2]
[419196817,1775016641666,-422.08092564,0.0002754,2]
[419196818,1775016641676,-925.0,0.00027732,2]
[419196819,1775016641685,-1220.965,0.00027732,2]
[419196820,1775016641694,-6016.0,0.00027743,2]
[419196821,1775016641704,-2469.0,0.00027743,2]
[419196822,1775016641713,-150.0,0.0002775,2]
[419196823,1775016641722,-250.0,0.00028,28]
[419196824,1775016641731,-250.0,0.00028,28]
[419196825,1775016641740,-3910.9005,0.000281,67]
[419196826,1775016641749,-402.8,0.00028199,2]
[419196827,1775016641758,-19637.16203367,0.00028302,2]
[419196828,1775016641767,-150.112,0.00028337,2]
[419196829,1775016641777,-150.137,0.00028337,2]
[419196830,1775016641786,-150.0,0.00028337,2]
[419196831,1775016641795,-150.0,0.00028337,2]
[419196832,1775016641805,-193.433,0.00028337,2]
[419196833,1775016641814,-166.012,0.00028337,2]
[419196834,1775016641824,-250.0,0.00028337,2]
[419196835,1775016641834,-214.791,0.00028337,2]
[419196836,1775016641844,-239.15,0.00028337,2]
[419196837,1775016641854,-179.0,0.00028337,2]
[419196838,1775016641863,-3519.0,0.00028337,2]
[419196839,1775016641872,-1346.0,0.00028337,2]
[419196840,1775016641881,-1045.0,0.00028337,2]
[419196841,1775016641891,-621.0,0.00028337,2]
[419196842,1775016641900,-150.0,0.00028337,2]
[419196843,1775016641910,-1263.0,0.00028337,2]
[419196844,1775016641920,-1115.0,0.00028347,5]
[419196845,1775016641929,-150.0,0.00028544,2]
[419196846,1775016641938,-504.0,0.00028547,15]
[419196847,1775016641948,-500.0,0.00028575,2]
[419196848,1775016641958,-500.0,0.00028575,2]
[419196849,1775016641967,-426.38205089,0.00028575,2]
[419196850,1775016641976,-500.0,0.00028575,2]
[419196851,1775016641986,-500.0,0.00028575,2]
[419196852,1775016641995,-598.65989029,0.00028575,2]
[419196853,1775016642004,-500.0,0.00028575,2]
[419196854,1775016642014,-500.0,0.00028575,2]
[419196855,1775016642023,-500.0,0.00028575,2]
[419196856,1775016642033,-250.0,0.00028575,2]
[419196857,1775016642042,-250.0,0.00028575,2]
[419196858,1775016642052,-250.0,0.00028575,2]
[419196859,1775016642061,-250.0,0.00028575,2]
[419196860,1775016642070,-500.0,0.00028575,2]
[419196861,1775016642079,-250.0,0.00028575,2]
[419196862,1775016642088,-250.0,0.00028575,2]
[419196863,1775016642098,-250.0,0.00028575,2]
[419196864,1775016642107,-250.0,0.00028575,2]
[419196865,1775016642116,-500.0,0.00028575,2]
[419196866,1775016642126,-151.0,0.00028575,2]
[419196867,1775016642135,-500.0,0.00028575,2]
[419196868,1775016642144,-500.0,0.00028575,2]
[419196869,1775016642153,-500.0,0.00028575,2]
[419196870,1775016642162,-500.0,0.00028575,2]
[419196871,1775016642171,-250.0,0.00028575,2]
[419196872,1775016642181,-500.0,0.00028575,2]
[419196873,1775016642190,-250.0,0.00028575,2]
[419196874,1775016642199,-500.0,0.00028575,2]
[419196875,1775016642208,-250.0,0.00028575,2]
[419196876,1775016642217,-250.0,0.00028575,2]
[419196877,1775016642226,-500.0,0.00028575,2]
[419196878,1775016642235,-250.0,0.00028575,2]
[419196879,1775016642245,-500.0,0.00028575,2]
[419196880,1775016642254,-250.0,0.00028575,2]
[419196881,1775016642263,-500.0,0.00028575,2]
[419196882,1775016642273,-250.0,0.00028575,2]
[419196883,1775016642282,-500.0,0.00028575,2]
[419196884,1775016642291,-250.0,0.00028575,2]
[419196885,1775016642300,-500.0,0.00028575,2]
[419196886,1775016642309,-235.66942461,0.00028575,2]
[419196887,1775016642319,-500.0,0.0002863,2]
[419196888,1775016642328,-151.0,0.0002863,2]
[419196889,1775016642339,-150.0,0.00028675,2]
[419196890,1775016642348,-500.0,0.00028685,2]
[419196891,1775016642358,-151.0,0.00028685,2]
[419196892,1775016642367,-500.0,0.0002874,2]
[419196893,1775016642377,-151.0,0.0002874,2]
[419196894,1775016642386,-500.0,0.00028795,2]
[419196895,1775016642395,-151.0,0.00028795,2]
[419196896,1775016642404,-500.0,0.0002885,2]
[419196897,1775016642414,-151.0,0.0002885,2]
[419196899,1775016642423,-500.0,0.00028905,2]
[419196900,1775016642432,-151.0,0.00028905,2]
[419196901,1775016642442,-500.0,0.0002896,2]
[419196902,1775016642450,-151.0,0.0002896,2]
[419196903,1775016642459,-500.0,0.00029015,2]
[419196904,1775016642468,-151.0,0.00029015,2]
[419196905,1775016642477,-1052.46418372,0.00029041,120]
[419196906,1775016642487,-500.0,0.0002907,2]
[419196907,1775016642497,-151.0,0.0002907,2]
[419196908,1775016642506,-150.0,0.00029124,2]
[419196909,1775016642515,-500.0,0.00029125,2]
[419196910,1775016642524,-151.0,0.00029125,2]
[419196911,1775016642534,-500.0,0.0002918,2]
[419196912,1775016642543,-151.0,0.0002918,2]
[419196913,1775016642552,-2000.0,0.000292,2]
[419196914,1775016642562,-500.0,0.00029235,2]
[419196915,1775016642571,-151.0,0.00029235,2]
[419196916,1775016642581,-152.0,0.00029288,3]
[419196917,1775016642590,-500.0,0.0002929,2]
[419196918,1775016642599,-151.0,0.0002929,2]
[419196919,1775016642609,-500.0,0.00029345,2]
[419196920,1775016642618,-151.0,0.00029345,2]
[419196921,1775016642629,-500.0,0.000294,2]
[419196922,1775016642639,-151.0,0.000294,2]
[419196923,1775016642648,-5025.9031,0.000294,72]
[419196924,1775016642658,-250.0,0.00029529,13]
[419196925,1775016642667,-3323.75700798,0.00029568,2]
[419196926,1775016642676,-150.0,0.000296,2]
[419196927,1775016642685,-825.0,0.00029737,60]
[419196928,1775016642695,-1000.0,0.00029846,30]
[419196929,1775016642707,-1000.0,0.00029846,30]
[419196930,1775016642716,-1000.0,0.00029846,30]
[419196931,1775016642725,-1000.0,0.00029846,30]
[419196932,1775016642734,-1000.0,0.00029846,30]
[419196933,1775016642744,-1000.0,0.00029846,30]
[419196934,1775016642753,-1000.0,0.00029846,30]
[419196935,1775016642762,-652.488,0.00029846,30]
[419196936,1775016642771,-150.0,0.00029971,2]
[419196937,1775016642780,-151.0,0.00029997,7]
[419196938,1775016642789,-273274.36457087,0.00029999,120]
[419196939,1775016644710,-473.93335833,0.00011,2]
[419196940,1775016644862,-126.06664167,0.00011,2]
[419196941,1775016644871,-24.30293125,0.00011,2]
[419196942,1775016645680,-575.69706875,0.00011,2]
[419196943,1775016645690,-600.0,0.00011,2]
[419196944,1775016645700,-600.0,0.00011,2]
[419196945,1775016645709,-195.0,0.00011848,2]
[419196946,1775016645719,-26339.65317091,0.00012726,2]
[419196947,1775016645728,-195.0,0.00012985,2]
[419196948,1775016645737,-222.22678702,0.00015,2]
[419196949,1775016645747,-151.0,0.0001599,2]
[419196950,1775016645755,-438.0,0.00016111,2]
[419196951,1775016645766,-150.3,0.00016116,2]
[419196952,1775016645775,-257.27,0.00017728,2]
[419196953,1775016645783,-74560.14815023,0.00029999,120]
[419196954,1775016645792,-363.51560483,0.0003,30]
[419196955,1775016645802,-1000.0,0.0003,2]
[419196956,1775016645811,-1134.56811026,0.0003,120]
[419196957,1775016645820,-331.10908906,0.0003,120]
[419196958,1775016645829,-150.0,0.00030136,20]
[419196959,1775016645838,-195.94,0.00030137,2]
[419196960,1775016645847,-164.36,0.00030137,2]
[419196961,1775016645856,-1009.01276583,0.00030137,120]
[419196962,1775016645865,-402.8,0.00030159,2]
[419196963,1775016645874,-154.74,0.00030259,60]
[419196964,1775016645883,-504.0,0.00030262,16]
[419196965,1775016645893,-250.0,0.00030408,16]
[419196967,1775016645902,-433.72,0.00030411,120]
[419196968,1775016645912,-12612.0,0.00030587,2]
[419196969,1775016645922,-194.15269407,0.00030685,2]
[419196970,1775016645932,-6016.0,0.00030743,2]
[419196971,1775016645942,-2469.0,0.00030743,2]
[419196972,1775016645951,-6458.7944,0.000308,77]
[419196973,1775016645961,-341.90321541,0.00031,120]
[419196974,1775016645971,-19637.16203367,0.00031057,2]
[419196975,1775016645980,-300.0,0.00031232,120]
[419196976,1775016645990,-150.0,0.00031337,2]
[419196977,1775016646001,-150.0,0.00031337,2]
[419196978,1775016646011,-150.0,0.00031337,2]
[419196979,1775016646020,-150.0,0.00031337,2]
[419196980,1775016646030,-3519.0,0.00031337,2]
[419196981,1775016646039,-1346.0,0.00031337,2]
[419196982,1775016646048,-1045.0,0.00031337,2]
[419196983,1775016646058,-1263.0,0.00031337,2]
[419196984,1775016646068,-1571.0,0.00031399,3]
[419196985,1775016646078,-150.0,0.0003145,2]
[419196986,1775016646087,-150.0,0.0003145,2]
[419196987,1775016646097,-150.0,0.0003147,2]
[419196988,1775016646106,-1000.0,0.0003147,120]
[419196989,1775016646115,-1000.0,0.0003147,120]
[419196990,1775016646125,-1000.0,0.0003147,120]
[419196991,1775016646135,-1000.0,0.0003147,120]
[419196992,1775016646145,-1000.0,0.0003147,120]
[419196993,1775016646154,-1000.0,0.0003147,120]
[419196994,1775016646163,-1000.0,0.0003147,120]
[419196996,1775016646173,-1000.0,0.0003147,120]
[419196998,1775016646182,-1000.0,0.0003147,120]
[419197000,1775016646191,-1000.0,0.0003147,120]
[419197002,1775016646200,-1000.0,0.0003147,120]
[419197004,1775016646209,-1000.0,0.0003147,120]
[419197006,1775016646218,-1000.0,0.0003147,120]
[419197008,1775016646228,-1000.0,0.0003147,120]
[419197009,1775016646237,-1000.0,0.0003147,120]
[419197010,1775016646246,-1000.0,0.0003147,120]
[419197011,1775016646255,-1000.0,0.0003147,120]
[419197012,1775016646265,-1000.0,0.0003147,120]
[419197013,1775016646274,-1000.0,0.0003147,120]
[419197014,1775016646283,-1000.0,0.0003147,120]
[419197015,1775016646292,-1000.0,0.0003147,120]
[419197016,1775016646301,-1000.0,0.0003147,120]
[419197017,1775016646310,-1000.0,0.0003147,120]
[419197018,1775016646319,-1000.0,0.0003147,120]
[419197019,1775016646328,-1000.0,0.0003147,120]
[419197020,1775016646337,-152.0,0.00031618,4]
[419197022,1775016646347,-250.0,0.00031777,21]
[419197023,1775016646356,-300.0,0.0003178,120]
[419197025,1775016646365,-504.0,0.00031977,18]
[419197027,1775016646374,-1000.0,0.00031983,120]
[419197029,1775016646383,-1000.0,0.00031992,120]
[419197031,1775016646393,-167.59319355,0.00032,120]
[419197033,1775016646402,-333.10487942,0.00032,120]
[419197035,1775016646411,-282.64913492,0.00032,120]
[419197037,1775016646421,-251.92447065,0.00032,120]
[419197039,1775016646431,-184.57207072,0.00032,120]
[419197041,1775016646441,-1371.27004027,0.00032,120]
[419197043,1775016646450,-385.11039298,0.00032,120]
[419197045,1775016646459,-1000.0,0.00032069,120]
[419197047,1775016646468,-402.8,0.0003212,2]
[419197049,1775016646478,-150.0,0.0003213,60]
[419197051,1775016646487,-150.0,0.0003213,60]
[419197052,1775016646496,-150.0,0.0003213,60]
[419197053,1775016646505,-285.29652053,0.0003213,60]
[419197054,1775016646514,-500.0,0.0003213,60]
[419197055,1775016646524,-500.0,0.0003213,60]
[419197056,1775016646533,-500.0,0.0003213,60]
[419197057,1775016646542,-500.0,0.0003213,60]
[419197058,1775016646551,-500.0,0.0003213,60]
[419197059,1775016646561,-500.0,0.0003213,60]
[419197060,1775016646570,-500.0,0.0003213,60]
[419197061,1775016646579,-500.0,0.0003213,60]
[419197062,1775016646588,-500.0,0.0003213,60]
[419197063,1775016646597,-500.0,0.0003213,60]
[419197064,1775016646606,-500.0,0.0003213,60]
[419197065,1775016646616,-500.0,0.0003213,60]
[419197066,1775016646626,-436.48877466,0.0003213,60]
[419197067,1775016646635,-158.91030595,0.0003213,60]
[419197068,1775016646644,-150.0,0.0003213,60]
[419197069,1775016646653,-163.48039526,0.0003213,60]
[419197070,1775016646662,-500.0,0.0003213,60]
[419197071,1775016646671,-500.0,0.0003213,60]
[419197072,1775016646680,-330.83967565,0.0003213,60]
[419197073,1775016646690,-156.78867168,0.0003213,60]
[419197074,1775016646699,-150.0,0.0003213,30]
[419197075,1775016646709,-150.0,0.0003213,30]
[419197076,1775016646718,-150.0,0.0003213,30]
[419197077,1775016646727,-197.65781346,0.0003213,30]
[419197078,1775016646736,-500.0,0.0003213,60]
[419197079,1775016646745,-500.0,0.0003213,60]
[419197080,1775016646754,-500.0,0.0003213,60]
[419197081,1775016646764,-302.55639078,0.0003213,60]
[419197082,1775016646773,-500.0,0.0003213,60]
[419197083,1775016646783,-500.0,0.0003213,60]
[419197084,1775016646792,-500.0,0.0003213,60]
[419197085,1775016646801,-500.0,0.0003213,60]
[419197086,1775016646810,-502.75199427,0.0003213,60]
[419197087,1775016646819,-500.0,0.0003213,60]
[419197088,1775016646828,-500.0,0.0003213,60]
[419197089,1775016646837,-500.0,0.0003213,2]
[419197090,1775016646846,-490.83014846,0.0003213,60]
[419197091,1775016646855,-500.0,0.0003213,2]
[419197092,1775016646865,-289.40261194,0.0003213,2]
[419197093,1775016646874,-699.0,0.0003213,60]
[419197094,1775016646884,-699.0,0.0003213,60]
[419197095,1775016646894,-500.0,0.0003213,60]
[419197096,1775016646903,-699.0,0.0003213,60]
[419197097,1775016646913,-500.0,0.0003213,60]
[419197098,1775016646922,-500.0,0.0003213,60]
[419197099,1775016646931,-150.0,0.0003213,60]
[419197100,1775016646943,-699.0,0.0003213,60]
[419197101,1775016646953,-500.0,0.0003213,60]
[419197102,1775016646962,-500.0,0.0003213,60]
[419197103,1775016646971,-150.0,0.0003213,60]
[419197104,1775016646981,-699.0,0.0003213,60]
[419197105,1775016646990,-500.0,0.0003213,60]
[419197106,1775016646999,-150.0,0.0003213,60]
[419197107,1775016647010,-699.0,0.0003213,60]
[419197108,1775016647020,-500.0,0.0003213,60]
[419197109,1775016647030,-500.0,0.0003213,60]
[419197110,1775016647039,-699.0,0.0003213,60]
[419197111,1775016647049,-500.0,0.0003213,60]
[419197112,1775016647059,-500.0,0.0003213,60]
[419197113,1775016647071,-150.0,0.0003213,60]
[419197114,1775016647080,-699.0,0.0003213,60]
[419197115,1775016647091,-203.77883217,0.0003213,60]
[419197116,1775016647101,-500.0,0.0003213,60]
[419197117,1775016647111,-150.0,0.0003213,60]
[419197118,1775016647122,-699.0,0.0003213,60]
[419197119,1775016647132,-500.0,0.0003213,60]
[419197120,1775016647142,-166.03773935,0.0003213,60]
[419197121,1775016647151,-699.0,0.0003213,60]
[419197122,1775016647162,-500.0,0.0003213,60]
[419197123,1775016647171,-699.0,0.0003213,60]
[419197124,1775016647180,-528.88868282,0.0003213,60]
[419197125,1775016647190,-699.0,0.0003213,60]
[419197126,1775016647199,-699.0,0.0003213,60]
[419197127,1775016647208,-150.0,0.0003213,60]
[419197128,1775016647219,-699.0,0.0003213,60]
[419197129,1775016647230,-150.0,0.0003213,60]
[419197130,1775016647241,-699.0,0.0003213,60]
[419197131,1775016647251,-150.0,0.0003213,60]
[419197132,1775016647261,-699.0,0.0003213,60]